[Event "4th ESNA Championship 2022"]
[Site "Vaduz"]
[Date "2022.09.27"]
[Round "4.3"]
[White "Frick, Renato"]
[Black "Kirby, Peter J."]
[Result "0-1"]
[ECO "B35"]
[WhiteElo "1875"]
[BlackElo "2011"]
[Annotator "TA"]
[PlyCount "132"]
[EventDate "2022.09.25"]
[EventType "tourn"]
[EventCountry "LIE"]
[SourceTitle "playchess.com"]
[Source "ChessBase"]
[SourceQuality "1"]
[TimeControl "40/5400+30:1800+30"]

{[%evp 22,132,35,33,34,12,39,31,45,44,46,56,93,108,105,108,109,112,108,59,61,0,37,29,41,0,0,0,0,0,0,0,0,0,0,0,0,-10,-8,-3,0,-5,0,0,0,-18,-13,-47,-32,-26,0,-65,-51,-51,-51,-54,-51,-70,-75,-105,-103,-109,-84,-124,-116,-118,-115,-145,-152,-155,-147,-185,-185,-241,-233,-245,-243,-246,-153,-181,0,0,0,0,0,-67,0,-45,-46,-47,-47,-58,0,0,0,-96,-72,-414,-197,-627,-595,-1152,-1105,-3559,-2513,-29977,-29978,-29977,-29977,-29978,-29979,-6127,-1700]} 1. e4 {[%emt 0:00:04]} c5 {[%emt 0:00:04]} 2. Nf3 {[%emt 0:01:24]} Nc6 {[%emt 0:00:06]} 3. d4 {[%emt 0:00:14]} cxd4 {[%emt 0:00:05]} 4. Nxd4 {[%emt 0:00:08]} g6 {[%emt 0:00:06]} 5. Nc3 {[%emt 0:00:36]} Bg7 {[%emt 0:00:07]} 6. Be3 {[%emt 0:00:08]} Nf6 {[%emt 0:00:15]} 7. Bc4 {[%emt 0:02:06]} O-O {[%emt 0:00:12]} 8. Bb3 {[%emt 0:00:41]} Qa5 {[%emt 0:00:08]} 9. O-O {[%emt 0:04:56]} d6 {[%emt 0:00:19]} 10. f3 {[%emt 0:03:36]} Bd7 {[%emt 0:02:59]} 11. Qd2 {[%emt 0:04:47]} Nxd4 {[%emt 0:05:22]} 12. Bxd4 {[%emt 0:00:34]} ({Of course not} 12. Qxd4 Ng4 $1 13. Qd3 Nxe3 14. Qxe3 Bxc3 15. Qxc3 Qxc3 16. bxc3 Rfc8 $17) 12... Bc6 {[%emt 0:03:50] B35: Sicilian: Accelerated Dragon with 5 Nc3: main line.} 13. Rad1 {[%emt 0:08:06][%cal Oc3d5]} Rfc8 {[%emt 0:01:51]} 14. Kh1 {[%emt 0:03:58] [#]} Qh5 $146 {[%emt 0:09:35] White is slightly better.} ({Predecessor:} 14... Nd7 15. Nd5 Qd8 16. Bxg7 Kxg7 17. f4 Nc5 18. Qd4+ Kg8 19. f5 Nxb3 20. axb3 Bxd5 21. Qxd5 Rc5 22. Qd2 Qc7 23. c3 Re5 24. Rf3 Qd8 25. Rdf1 Qf8 26. Qf2 f6 27. Rg3 {½-½ (27) Wojciechowski,P (2008)-Burnett,L (1952) England 2016}) 15. Qf2 {[%emt 0:12:27]} b6 {[%emt 0:05:09]} 16. Rfe1 {[%emt 0:14:30]} Qa5 {[%emt 0:07:23]} 17. e5 {[%emt 0:07:05]} dxe5 {[%emt 0:07:56]} 18. Rxe5 {[%emt 0:01:39]} ({Much worse is} 18. Bxe5 $6 Rd8 $11) 18... Qb4 {[%emt 0:10:24]} 19. a3 {[%emt 0:04:49]} Qd6 {[%emt 0:02:38][%cal Of6g4]} 20. Ree1 {[%emt 0:00:30]} (20. Qe3 $1 $16) 20... Qc7 $14 {[%emt 0:01:32]} 21. Qe3 {[%emt 0:06:43]} (21. Be5 $14 Qb7 22. Qd4) 21... Re8 {[%emt 0:03:10]} 22. Be5 {[%emt 0:04:52]} Qb7 {[%emt 0:00:46]} 23. Rd2 {[%emt 0:02:15]} Rad8 {[%emt 0:01:02]} 24. Red1 {[%emt 0:01:03]} Rxd2 {[%emt 0:01:16]} 25. Rxd2 {[%emt 0:00:35]} Nd7 {[%emt 0:04:19]} 26. Bxg7 {[%emt 0:03:52]} Kxg7 {[%emt 0:00:02]} 27. Bd5 {[%emt 0:01:33]} Nf6 {[%emt 0:03:27][%cal Rc6d5,Bd7f6,Bf6e8,Be8d6,Bd6f5][%mdl 32]} 28. Bxc6 {[%emt 0:03:28]} Qxc6 {[%emt 0:00:02]} 29. Qd3 {[%emt 0:04:04]} Rc8 {[%emt 0:01:31]} 30. Kg1 {[%emt 0:01:54]} Kf8 {[%emt 0:08:13]} 31. g3 {[%emt 0:00:59]} Ne8 {[%emt 0:12:06]} 32. Kg2 {[%emt 0:00:19]} Nd6 {[%emt 0:00:20] White must now prevent ...Nc4.} 33. Qd4 {[%emt 0:00:32][%cal Rd4h8]} f6 {[%emt 0:01:28] White should prevent ...Nc4.} 34. Nd5 {[%emt 0:01:01][%cal Od5f6]} Nf5 {[%emt 0:04:56]} 35. Qe4 {[%emt 0:00:59]} Qc4 {[%emt 0:01:59]} 36. g4 {[%emt 0:00:17]} (36. Qxc4 $11 Rxc4 37. g4) 36... Qxe4 $15 {[%emt 0:00:30]} 37. fxe4 {[%emt 0:00:02][%mdl 4096] Endgame KRN-KRN} Nd6 {[%emt 0:00:10]} 38. Re2 {[%emt 0:00:41]} Nc4 {[%emt 0:01:30]} 39. c3 {[%emt 0:00:14]} Ne5 {[%emt 0:00:03]} 40. h3 {[%emt 0:00:35]} Kf7 {[%emt 0:00:53]} 41. Kg3 {[%emt 0:11:54]} e6 {[%emt 0:01:17]} 42. Nf4 {[%emt 0:02:14]} Rd8 {[%emt 0:00:29]} 43. Ng2 {[%emt 0:04:08]} Ke7 {[%emt 0:05:00]} 44. Ne1 {[%emt 0:03:35]} Rd1 {[%emt 0:01:03]} 45. Kf2 {[%emt 0:00:37]} Kd6 {[%emt 0:05:47] Black is more active.} 46. Rc2 {[%emt 0:08:07]} Nd3+ {[%emt 0:02:59]} 47. Ke2 {[%emt 0:00:50]} (47. Nxd3 $142 Rxd3 48. Kg2) 47... Rxe1+ $19 {[%emt 0:00:06]} 48. Kxd3 {[%emt 0:00:06] KR-KR} Rh1 {[%emt 0:00:09]} 49. Kc4 {[%emt 0:00:26]} a6 {[%emt 0:01:35]} 50. Rd2+ {[%emt 0:01:11]} Kc7 $2 {[%emt 0:00:18]} ({Black should try} 50... Ke5 $19 51. Rd3 Re1) 51. Rf2 $11 {[%emt 0:00:08]} Rxh3 {[%emt 0:04:22]} 52. Rxf6 {[%emt 0:00:07]} Kd6 {[%emt 0:00:11]} 53. Rf7 {[%emt 0:02:16]} ({White should play} 53. Kd4 $1 $11) 53... Rh4 {[%emt 0:02:23]} (53... Ke5 $1 $15) 54. Ra7 {[%emt 0:00:23]} Rxg4 {[%emt 0:00:49]} 55. Rxa6 {[%emt 0:00:05]} Kc6 {[%emt 0:00:57] Hoping for ...Kb7.} 56. Kd4 {[%emt 0:00:12]} Rg5 {[%emt 0:01:24]} (56... Kb7 $15 57. Ra4 Rg5) 57. Ra7 {[%emt 0:01:34]} e5+ {[%emt 0:00:34]} 58. Kc4 {[%emt 0:00:58] [#]} (58. Ke3 $11 {remains equal.}) 58... h5 $1 $17 {[%emt 0:00:19][%cal Bh7h5,Bh5h4,Bh4h3,Bh3h2][%mdl 32]} 59. b4 $2 {[%emt 0:00:44][%mdl 8192] Loses the game.} (59. Rh7 $17 {is a better chance.}) 59... b5+ {[%emt 0:00:24]} (59... h4 $142 60. Rf7 b5+ 61. Kd3 h3) 60. Kb3 $2 {[%emt 0:00:38] [#]} (60. Kd3) 60... h4 $1 $19 {[%emt 0:00:46] Strongly threatening ...h3.} 61. a4 {[%emt 0:00:11]} bxa4+ {[%emt 0:01:04]} 62. Kxa4 {[%emt 0:00:06]} h3 {[%emt 0:00:57] ...h2 is the strong threat.} 63. Rh7 {[%emt 0:00:25]} Rh5 {[%emt 0:00:18]} 64. b5+ {[%emt 0:00:28]} Kd6 {[%emt 0:02:39]} 65. Rg7 {[%emt 0:00:24]} h2 {[%emt 0:01:21]} 66. Rxg6+ {[%emt 0:00:03]} Ke7 {[%emt 0:00:09] Weighted Error Value: White=0.37/Black=0.20 (precise)} (66... Kd7 $142 67. Rg7+ Ke6) 0-1

[Event "4th ESNA Championship 2022"]
[Site "Vaduz"]
[Date "2022.09.27"]
[Round "4.4"]
[White "Berend, Fred"]
[Black "Efimov, Igor"]
[Result "0-1"]
[ECO "B07"]
[WhiteElo "2300"]
[BlackElo "2360"]
[Annotator "TA"]
[PlyCount "92"]
[EventDate "2022.09.25"]
[EventType "tourn"]
[EventCountry "LIE"]
[SourceTitle "playchess.com"]
[Source "ChessBase"]
[SourceQuality "1"]
[TimeControl "40/5400+30:1800+30"]

{[%evp 11,92,35,35,32,46,0,0,0,0,-3,0,-33,-21,-25,0,0,23,40,28,25,32,4,21,-24,38,39,35,-65,-72,-145,-147,-624,-615,-1281,-1295,-1091,-273,-283,-290,-248,-110,-204,-147,-215,-163,-176,-184,-181,-172,-260,-236,-430,-430,-461,-336,-453,-446,-455,-463,-455,-442,-456,-460,-464,-446,-440,-436,-741,-718,-644,-627,-845,-818,-975,-684,-5314,-5314,-12810,-7504,-29987,-29988,-29988,-29985]} 1. e4 {[%emt 0:01:06]} d6 {[%emt 0:03:49]} 2. d4 {[%emt 0:00:34]} Nf6 {[%emt 0:00:07]} 3. Nc3 {[%emt 0:00:12]} g6 {[%emt 0:00:10]} 4. Be3 {[%emt 0:00:20]} Bg7 {[%emt 0:00:29]} 5. Qd2 {[%emt 0:00:54]} c6 {[%emt 0:00:25]} 6. h3 {[%emt 0:02:42]} b5 {[%emt 0:01:55]} 7. Bd3 {[%emt 0:02:30] B07: Pirc Defence: Miscellaneous Systems.} e5 {[%emt 0:05:41]} 8. Nf3 {[%emt 1:26:12]} (8. dxe5 $1 $14 dxe5 9. Nf3) 8... exd4 $11 {[%emt 0:03:30]} 9. Nxd4 {[%emt 0:00:00] The position is equal.} O-O {[%emt 0:01:18]} 10. a3 {[%emt 0:00:00] [#]} Re8 $146 {[%emt 0:00:43]} ({Predecessor:} 10... a6 11. Nde2 Re8 12. O-O c5 13. Ng3 Bb7 14. Rfe1 Nbd7 15. Bg5 Qb6 16. Bf1 c4 {½-½ (25) Novoselski,Z (2370)-Matulovic,M (2450) Cetinje 1992}) 11. Nde2 {[%emt 0:00:00]} Nbd7 {[%emt 0:15:54]} 12. Ng3 {[%emt 0:00:00]} Ne5 {[%emt 0:07:26]} 13. Be2 {[%emt 0:00:00]} Nc4 {[%emt 0:06:55]} 14. Bxc4 {[%emt 0:00:00]} bxc4 {[%emt 0:00:02]} 15. O-O-O {[%emt 0:00:00]} d5 {[%emt 0:49:36]} 16. Rhe1 {[%emt 0:00:00]} Be6 $1 {[%emt 0:00:00]} 17. exd5 {[%emt 0:00:00]} cxd5 {[%emt 0:00:00]} (17... Nxd5 $11 18. Bd4 Bxd4 19. Qxd4 Qg5+ 20. Qd2 Qxd2+ 21. Kxd2 Reb8) 18. Bd4 $14 {[%emt 0:00:00]} Rb8 {[%emt 0:00:00]} 19. Kb1 {[%emt 0:00:00]} (19. Qf4 $14) 19... Re7 $1 $15 {[%emt 0:00:00][%cal Be8e7,Be7b7,Bb7b2][%mdl 32]} 20. Na4 {[%emt 0:00:00]} (20. Ka2 $142) 20... Reb7 $1 $17 {[%emt 0:00:00]} 21. Be5 $2 {[%emt 0:00:00][%mdl 8192]} (21. Ka1 $17) 21... Bd7 $19 {[%emt 0:00:00]} (21... Rc8 22. Ka1 $11) 22. Nc3 {[%emt 0:00:00]} Rxb2+ {[%emt 0:00:00]} 23. Kc1 {[%emt 0:00:00][%cal Bb1c1,Bc1d2,Bd2e2,Be2f1][%mdl 32] [#]} R8b7 $2 {[%emt 0:00:00]} (23... Ba4 $1 {[%cal Od8b6][%mdl 512] Hoping for ...Qb6!} 24. Re2 (24. Re3 Ne4) 24... Ne4 25. Ngxe4 Bxe5) 24. Qd4 {[%emt 0:00:00] [#]} Qa5 $1 {[%emt 0:00:00][%cal Oa5a3]} 25. Kd2 {[%emt 0:04:27] [#]} ({Avoid the trap} 25. Bxf6 $2 Qxa3 $1 26. Kd2 (26. Nxd5 $2 Rxc2+ 27. Kxc2 Qa2+ 28. Kc3 Rb3+ 29. Kxc4 Qa4+ 30. Nb4 Rxb4+ 31. Kd3 Rxd4+ $19) 26... Bxf6 27. Qxf6 Rxc2+ $3 {[%mdl 512]} 28. Ke3 Rb6 $19) 25... Qxa3 $40 {[%emt 0:00:00][%mdl 128] Black wants a kill. Dancing on a razor blade.} 26. Rc1 {[%emt 0:00:04]} (26. Ke2 $17 Rxc2+ 27. Kf1) 26... R7b6 {[%emt 0:00:00]} 27. Re3 {[%emt 0:01:20]} (27. Ke2 $17 {keeps fighting.}) 27... Qa5 {[%emt 0:00:00]} 28. Ke2 {[%emt 0:00:33]} Re6 {[%emt 0:00:00][%cal Oe6e5]} ({Stronger than} 28... Bc8 29. Nge4 Nxe4 30. Bxg7 Nxc3+ 31. Qxc3 $17) 29. Kf1 {[%emt 0:01:39]} Qb6 {[%emt 0:00:00]} 30. Qf4 {[%emt 0:01:14]} (30. Nge2 {was the only chance.}) 30... a5 {[%emt 0:00:00]} 31. Nce2 $2 {[%emt 0:00:52]} (31. Qh4) 31... Rb1 {[%emt 0:00:00]} 32. Bd4 {[%emt 0:00:11]} Rxc1+ {[%emt 0:00:00]} 33. Nxc1 {[%emt 0:00:03]} Qb1 {[%emt 0:00:31][%csl LRc1,LRc2]} 34. Rxe6 {[%emt 0:00:25]} Bxe6 {[%emt 0:00:28] This bishop pair is nice.} (34... fxe6 $2 {perishes.} 35. c3 $19) 35. Nge2 {[%emt 0:01:05] [#]} Qxc2 $1 {[%emt 0:00:13][%cal Rc2d1]} 36. g4 {[%emt 0:00:19] aiming for Qb8+.} (36. Ke1 Nd7) 36... Nd7 {[%emt 0:01:18] Inhibits Qb8+.} 37. Bxg7 {[%emt 0:00:28]} Kxg7 {[%emt 0:00:19]} 38. Nd4 {[%emt 0:01:31]} Qe4 {[%emt 0:00:27]} 39. Nxe6+ {[%emt 0:00:35]} (39. Qxe4 $142 dxe4 40. Ke2) 39... Qxe6 {[%emt 0:00:15][%mdl 4096] Endgame KQN-KQN} 40. Ne2 {[%emt 0:00:23]} Qe5 {[%emt 0:00:45]} 41. Qd2 {[%emt 0:30:24]} a4 {[%emt 0:33:35] Threatens to win with ...a3.} 42. Qa5 {[%emt 0:00:00]} d4 {[%emt 0:00:00][%cal Bd5d4,Bd4d3][%mdl 32]} 43. Qxa4 {[%emt 0:00:00]} d3 {[%emt 0:00:00]} 44. Ng1 {[%emt 0:00:00]} Nc5 {[%emt 0:00:00]} 45. Qxc4 {[%emt 0:00:00]} d2 {[%emt 0:00:00]} 46. Qe2 {[%emt 0:00:00]} Qa1+ {[%emt 0:00:00] Weighted Error Value: White=1.12/Black=0.34} 0-1

[Event "4th ESNA Championship 2022"]
[Site "Vaduz"]
[Date "2022.09.27"]
[Round "4.5"]
[White "Henderson de La Fuente, Lance"]
[Black "Carpenter, Paul A"]
[Result "1-0"]
[ECO "A80"]
[WhiteElo "2504"]
[BlackElo "1986"]
[Annotator "TA"]
[PlyCount "83"]
[EventDate "2022.09.25"]
[EventType "tourn"]
[EventCountry "LIE"]
[SourceTitle "playchess.com"]
[Source "ChessBase"]
[SourceQuality "1"]
[TimeControl "40/5400+30:1800+30"]

{[%evp 9,83,51,125,118,114,114,116,101,120,88,83,74,77,79,97,18,27,5,11,16,25,26,24,-68,-42,-109,-73,-67,7,0,54,38,88,-88,-103,-114,0,0,0,0,0,0,0,14,84,89,89,0,67,71,116,0,77,0,61,60,85,0,47,47,50,51,58,47,44,75,70,97,29973,29974,29976,12841,29986,29985,12839,232]} 1. d4 {[%emt 0:00:31]} f5 {[%emt 0:00:24]} 2. Nc3 {[%emt 0:00:32]} Nf6 {[%emt 0:00:27]} 3. Bg5 {[%emt 0:00:17]} g6 {[%emt 0:04:16]} 4. e3 {[%emt 0:01:46]} Bg7 {[%emt 0:03:13]} 5. h4 {[%emt 0:01:27][%cal Bh2h4,Bh4h5][%mdl 32]} h6 {[%emt 0:27:16]} (5... Ne4 $14) 6. Bxf6 $16 {[%emt 0:01:24] A80: Dutch Defence: Unusual White second moves.} Bxf6 {[%emt 0:01:29]} 7. Nge2 {[%emt 0:07:56] Strongly threatening Nf4.} e5 {[%emt 0:11:49] [#] Inhibits Nf4.} 8. dxe5 $146 {[%emt 0:04:32] White is better.} ({Predecessor:} 8. d5 d6 9. h5 g5 10. Qd2 O-O 11. O-O-O Nd7 12. Kb1 Bg7 13. f3 Nc5 14. Ng3 a6 15. e4 f4 16. Nf5 Bxf5 17. exf5 {1-0 (17) Schmid,W (2220)-Voetter,H (2367) ICCF email 2017}) 8... Bxe5 {[%emt 0:00:11]} 9. h5 {[%emt 0:04:51]} g5 {[%emt 0:05:20]} 10. f4 {[%emt 0:02:42]} gxf4 {[%emt 0:10:25]} 11. exf4 {[%emt 0:03:26]} Bg7 {[%emt 0:10:34]} 12. Qd3 {[%emt 0:06:03]} (12. Qd5 $1 $16) 12... O-O $11 {[%emt 0:06:44]} 13. O-O-O {[%emt 0:00:32]} c6 {[%emt 0:00:16]} 14. Qd6 {[%emt 0:05:58]} Rf6 {[%emt 0:01:47]} 15. Qd2 $36 {[%emt 0:05:23][%mdl 2048] White fights for an advantage.} d5 {[%emt 0:00:28]} 16. Na4 {[%emt 0:01:33]} (16. Nd4 $11) 16... Nd7 {[%emt 0:00:45]} (16... Na6 $5 {[%cal Rb7b5]} 17. a3 b5 $17) 17. c4 {[%emt 0:02:49]} (17. Nd4 $15) 17... Kh8 {[%emt 0:01:41]} 18. Rh3 {[%emt 0:12:03]} b5 {[%emt 0:04:52]} (18... Rd6 $15 19. Re3 Nf6) 19. cxb5 {[%emt 0:00:32]} cxb5 {[%emt 0:00:03]} ({Black should play} 19... Rd6 $11) 20. Qxd5 $14 {[%emt 0:05:27]} Rb8 {[%emt 0:00:41]} ({Better is} 20... Qc7+ $1 $14 21. Nac3 (21. Rc3 Qb8 $11) 21... Rb8) 21. Nac3 $2 {[%emt 0:00:54]} (21. Nc5 $16 {[%cal Rc5d7] is forced if you want to stay better.} Qc7 22. Rc3 Nxc5 23. Rxc5) 21... b4 $17 {[%emt 0:01:57][%mdl 1024] Black has strong compensation.} 22. Nb5 {[%emt 0:03:06]} Rfb6 {[%emt 0:00:49]} (22... Qf8 $17 {aiming for ...Nc5.} 23. Kb1 (23. Nxa7 Bb7 $19) 23... Nb6) 23. Nd6 $11 {[%emt 0:03:42] And now Nf7+ would win.} Qf6 {[%emt 0:01:01][%csl Gg7][%cal Rf6b2]} 24. Nf7+ {[%emt 0:00:20]} Kh7 {[%emt 0:00:04][%csl Gg7][%cal Rf6b2]} 25. Nd4 {[%emt 0:00:08] Threatens to win with g4.} Nf8 $1 {[%emt 0:02:16]} 26. Ne5 {[%emt 0:07:19] Hoping for Bd3.} Ne6 {[%emt 0:00:44]} (26... Bb7 $11 {keeps the balance.} 27. Qf7 Qxf7 28. Nxf7 Rc8+ 29. Kb1 Kg8 30. Nxf5 (30. Ne5 Rd6 $17) 30... Kxf7 31. Nd6+ Rxd6 32. Rxd6 Be4+ 33. Bd3 Bxg2) 27. Nxe6 $1 $16 {[%emt 0:05:52]} Bxe6 {[%emt 0:00:20]} 28. Qa5 {[%emt 0:00:13]} (28. Qd4 $16) 28... b3 {[%emt 0:01:08]} (28... Qe7 $11) 29. a3 $1 $14 {[%emt 0:01:29]} Rd8 {[%emt 0:00:56][%cal Ob6c6]} 30. Bd3 {[%emt 0:04:48]} (30. Qxa7 $2 Rc6+ $3 {[%mdl 512]} 31. Bc4 (31. Rc3 $2 Rxc3+ 32. bxc3 b2+ 33. Kxb2 Rxd1 $19) 31... Bxc4 32. Rxd8 Be2+ 33. Rc3 Qxd8 $19) (30. Rxd8 $6 Qxd8 31. Qd2 Rd6 $14) (30. Be2 $16) 30... Rbd6 {[%emt 0:00:46]} (30... Rd4 $1 $11) 31. Re3 {[%emt 0:03:42] Active counter play!} (31. Qxa7 $16 {Black must now prevent Rg3.} Rd4 32. Rg3 Rc8+ 33. Kd2 (33. Kb1 Rxf4 34. Re1 Re4 $11) 33... Rxf4 34. Re1) 31... Rd4 {[%emt 0:00:42]} (31... Qh4 $11 32. Rf3 Bxe5 33. Qxe5 Qxh5) 32. g3 $1 {[%emt 0:00:50]} (32. Qxa7 Rxf4 33. Rde1 Bd5 $17) 32... Bc4 {[%emt 0:00:31] [#]} 33. Ng4 {[%emt 0:00:36] Chess con chili.} ({Wrong is} 33. Qxa7 $2 Qe6 34. Qf7 Qxf7 35. Nxf7 Bxf7 36. Bxf5+ Kg8 37. Rxd4 Bxd4 $19) (33. Nd7 $2 R8xd7 34. Bxf5+ (34. Qxf5+ $2 Kg8 $19) 34... Kh8 35. Bxd7 {[#]} Rxd7 $1 $19) ({White should try} 33. Qc3 $1 $16 Bxd3 34. Rexd3 (34. Rdxd3 Rxd3 35. Rxd3 Rxd3 $16) 34... Rxd3 35. Rxd3) 33... Qc6 {[%emt 0:01:07]} (33... Qd6 $11 {is superior.} 34. Qxf5+ Kg8 35. Qh7+ Kf8 36. Qf5+ Kg8 37. Qh7+ Kf8 38. Qf5+ Kg8) 34. Bxf5+ {[%emt 0:01:06]} ({Stronger than} 34. Qxf5+ Kg8 35. Qh7+ Kf8 36. Qf5+ Bf7+ 37. Kd2 Qg2+ 38. Ke1 Qh1+ 39. Ke2 Qxh5 40. Qxh5 Bxh5 $19) 34... Kh8 {[%emt 0:00:08][%csl Gd8][%cal Rd4d1]} 35. Qxd8+ {[%emt 0:00:50]} Rxd8 {[%emt 0:00:58]} 36. Rxd8+ {[%emt 0:00:05]} Bg8+ {[%emt 0:00:04] This bishop pair is nice.} 37. Kd1 {[%emt 0:01:10]} Bxb2 {[%emt 0:00:44]} 38. Rxb3 {[%emt 0:01:36]} Bf6 {[%emt 0:00:33][%mdl 8192] Black cannot hold the game after this.} (38... Qh1+ $16 39. Ke2 Qg2+ 40. Nf2 Bd4) 39. Nxf6 {[%emt 0:00:56]} Qxf6 {[%emt 0:00:07]} 40. Rbb8 {[%emt 0:00:10][%csl Gb8][%cal Rd8g8]} Qxf5 {[%emt 0:02:14]} 41. Rxg8+ {[%emt 0:30:09]} Kh7 {[%emt 0:30:03]} 42. Rh8+ {[%emt 0:00:05] Weighted Error Value: White=0.33/Black=0.51} 1-0

[Event "4th ESNA Championship 2022"]
[Site "Vaduz"]
[Date "2022.09.28"]
[Round "5.1"]
[White "Carpenter, Paul A"]
[Black "Mizzi, Jack"]
[Result "0-1"]
[ECO "B11"]
[WhiteElo "1986"]
[BlackElo "1863"]
[Annotator "TA"]
[PlyCount "58"]
[EventDate "2022.09.25"]
[EventType "tourn"]
[EventCountry "LIE"]
[SourceTitle "playchess.com"]
[Source "ChessBase"]
[SourceQuality "1"]
[TimeControl "40/5400+30:1800+30"]

{[%evp 9,58,38,43,37,37,45,50,16,8,7,14,17,26,8,0,0,23,29,38,41,51,-22,-15,-26,0,0,0,-13,0,4,0,-12,0,-144,-143,-161,-140,-135,-152,-236,-210,-377,-372,-479,-470,-793,-799,-760,-735,-710,-614]} 1. e4 {[%emt 0:00:14]} c6 {[%emt 0:00:08]} 2. Nf3 {[%emt 0:00:18]} d5 {[%emt 0:00:42]} 3. Nc3 {[%emt 0:00:19]} dxe4 {[%emt 0:01:41]} 4. Nxe4 {[%emt 0:00:11]} Nf6 {[%emt 0:01:03]} 5. Qe2 {[%emt 0:01:32]} Bf5 {[%emt 0:03:30]} 6. Nxf6+ {[%emt 0:04:25] B11: Caro-Kann: Two Knights Variation.} gxf6 {[%emt 0:00:09]} 7. d3 {[%emt 0:06:20] 7.d3 is better than 7.d4.} Na6 {[%emt 0:05:17] [#]} 8. Bd2 $146 {[%emt 0:24:33] Against Qa5. White is slightly better.} ({Predecessor:} 8. g3 Qd7 9. Bg2 Bh3 10. Bxh3 Qxh3 11. Bd2 Nc7 12. O-O-O Qe6 13. Qxe6 Nxe6 14. d4 {½-½ (51) Radzhabov,R (2332)-Tosic,M (2362) Cheliabinsk 2018}) 8... Qb6 {[%emt 0:08:35]} 9. Bc3 {[%emt 0:05:08]} O-O-O {[%emt 0:01:23]} 10. g3 {[%emt 0:00:42]} e5 {[%emt 0:06:10]} (10... Bg4 {is interesting.} 11. Bg2 h5 12. O-O Nb4) 11. Nh4 {[%emt 0:01:49]} (11. Bg2 $5 {[%cal Rf3e5]}) 11... Be6 {[%emt 0:02:34]} 12. Bg2 {[%emt 0:01:55]} Bb4 {[%emt 0:09:36]} 13. O-O {[%emt 0:05:04]} Bxc3 {[%emt 0:03:43]} 14. bxc3 {[%emt 0:00:09]} Qc5 {[%emt 0:03:12]} 15. Qe3 {[%emt 0:15:30]} ({White should try} 15. c4 $14) 15... Qxc3 $11 {[%emt 0:05:14]} 16. Qxa7 {[%emt 0:01:43] [#] Black must now prevent Rab1.} Qc5 {[%emt 0:00:22] Active counter play!} 17. Qxc5 {[%emt 0:00:09]} Nxc5 {[%emt 0:00:06][%cal Ba6c5,Bc5d7,Bd7c5,Bc5d3][%mdl 32]} 18. a4 {[%emt 0:01:57]} Kc7 {[%emt 0:02:24]} 19. f4 {[%emt 0:05:48]} Ra8 {[%emt 0:07:47]} 20. Rae1 {[%emt 0:06:01]} Nd7 {[%emt 0:03:02]} 21. c4 {[%emt 0:00:35]} (21. fxe5 $11 {remains equal.} fxe5 22. Re4) 21... Nc5 $17 {[%emt 0:01:37]} ({Don't take} 21... Rxa4 22. f5 $14) 22. Re3 {[%emt 0:06:19]} Rxa4 {[%emt 0:03:04]} 23. fxe5 {[%emt 0:02:29]} fxe5 {[%emt 0:00:30]} 24. Nf3 {[%emt 0:00:02]} (24. Be4 $17 {might work better.}) 24... Nxd3 $19 {[%emt 0:03:11]} ({Stronger than} 24... e4 25. dxe4 Rd8 26. Ne5 $17) 25. Ng5 $2 {[%emt 0:04:25] [#]} (25. Rxd3 {was worth a try.} e4 26. Re3 exf3 27. Bxf3) 25... Bxc4 {[%emt 0:00:56]} 26. Nxf7 {[%emt 0:00:02]} Rf8 {[%emt 0:01:03] Black is clearly winning.} 27. Nxe5 {[%emt 0:00:31]} (27. Ng5 $142 Rxf1+ 28. Bxf1) 27... Rxf1+ {[%emt 0:00:18]} 28. Bxf1 {[%emt 0:00:18]} Nxe5 {[%emt 0:00:39]} 29. Rxe5 {[%emt 0:00:05]} Ra1 {[%emt 0:01:06] Weighted Error Value: White=0.54/Black=0.05 (flawless)} 0-1

[Event "4th ESNA Championship 2022"]
[Site "Vaduz"]
[Date "2022.09.28"]
[Round "5.2"]
[White "Efimov, Igor"]
[Black "Henderson de La Fuente, Lance"]
[Result "1/2-1/2"]
[ECO "A47"]
[WhiteElo "2360"]
[BlackElo "2504"]
[Annotator "TA"]
[PlyCount "49"]
[EventDate "2022.09.25"]
[EventType "tourn"]
[EventCountry "LIE"]
[SourceTitle "playchess.com"]
[Source "ChessBase"]
[SourceQuality "1"]
[TimeControl "40/5400+30:1800+30"]

{[%evp 9,49,-3,-3,-7,0,-16,-21,-22,-29,-31,-15,-35,-19,-25,-8,-41,-28,-40,-29,-45,-39,-49,-27,-35,-25,-45,0,0,0,0,0,0,0,0,0,0,0,0,0,0,0,-6]} 1. d4 {[%emt 0:00:04]} Nf6 {[%emt 0:00:51]} 2. Nf3 {[%emt 0:00:12]} b6 {[%emt 0:00:39]} 3. Bg5 {[%emt 0:01:44]} Bb7 {[%emt 0:03:56]} 4. Nbd2 {[%emt 0:00:33]} g6 {[%emt 0:01:13]} 5. Bxf6 {[%emt 0:02:12]} exf6 {[%emt 0:00:07]} 6. e4 {[%emt 0:00:17] A47: 1 d4 Nf6 2 Nf3 b6: Torre, London and Colle Systems.} Bg7 {[%emt 0:02:27]} 7. Bd3 {[%emt 0:06:59]} O-O {[%emt 0:00:20]} 8. O-O {[%emt 0:00:20]} d5 {[%emt 0:00:55]} 9. c3 {[%emt 0:02:03]} Nd7 {[%emt 0:02:27] [#]} 10. Re1 $146 {[%emt 0:15:25]} ({Predecessor:} 10. a4 c5 11. a5 dxe4 12. Nxe4 f5 13. Nd6 Bxf3 14. Qxf3 cxd4 15. cxd4 Bxd4 16. Qd5 {1-0 (38) Dmitrenko,V (2395)-Gaehwiler,G (2400) Chess.com INT 2021}) 10... c5 {[%emt 0:03:35]} 11. exd5 {[%emt 0:08:24]} Bxd5 {[%emt 0:15:28]} 12. Be4 {[%emt 0:00:53]} Bxe4 {[%emt 0:00:19]} 13. Nxe4 {[%emt 0:00:14]} f5 {[%emt 0:00:22]} 14. Ng3 {[%emt 0:00:29][%cal Be4g3,Bg3e2,Be2f4][%mdl 32]} cxd4 {[%emt 0:01:19]} 15. Nxd4 {[%emt 0:00:28]} Ne5 {[%emt 0:07:33]} 16. Nge2 {[%emt 0:03:41]} Qh4 {[%emt 0:02:39] [#] Hoping for ...Ng4.} 17. g3 {[%emt 0:07:33]} Qf6 {[%emt 0:00:50]} (17... Qe4 {with more complications.} 18. Nc1 Qb7 19. Nd3 Nc4) 18. Nf4 {[%emt 0:09:00] The position is equal.} Rad8 {[%emt 0:01:18]} 19. Qe2 {[%emt 0:00:14]} b5 {[%emt 0:13:47]} 20. Qxb5 {[%emt 0:05:01]} Rxd4 {[%emt 0:40:25][%mdl 64] [#] Remove Defender} 21. cxd4 {[%emt 0:00:09]} Nf3+ {[%emt 0:00:00]} 22. Kg2 {[%emt 0:00:03]} Nxe1+ {[%emt 0:00:00]} 23. Rxe1 {[%emt 0:00:02]} Qxd4 {[%emt 0:00:00]} 24. b3 {[%emt 0:00:19]} Rd8 {[%emt 0:00:00]} 25. Re8+ {[%emt 0:24:41] Weighted Error Value: White=0.08 (flawless) /Black=0.07 (flawless)} 1/2-1/2